bitfinex-derivatives/quotes_SOLF0:USTF0_20250829
["timestamp","ask_amount","ask_price","bid_price","bid_amount"]
[1756486184696,4.44287709,204.22,204.13,7.81]
[1756486184901,7.79,204.21,204.08,134.53]
[1756486185191,4.4071,204.19,204.08,134.53]
[1756486185397,76.3464,204.19,204.08,7.81]
[1756486185586,0.03442447,204.16,204.08,7.81]
[1756486185789,4.4081,204.15,204.05,4.41]
[1756486185989,0.03442447,204.16,204.05,12.22]
[1756486186213,138.99308577,204.17,204.05,7.81]
[1756486186510,4.4083,204.13,204.05,7.81]
[1756486187108,7.79,204.16,204.06,4.4098]
[1756486187510,134.75,204.16,204.06,4.4098]
[1756486187813,139.1579,204.16,204.05,7.81]
[1756486188603,7.79,204.16,204.05,7.81]
[1756486188812,7.79,204.2,204.08,7.81]
[1756486189008,54.98,204.19,204.08,7.81]
[1756486189214,76.3482,204.18,204.02,7.81]
[1756486189410,12.19308577,204.17,204.05,68.6014]
[1756486189614,12.19308577,204.17,204.06,7.81]
[1756486189816,12.1973,204.18,204.07,4.4096]
[1756486190113,73.37,204.18,204.07,4.4096]
[1756486190313,73.37,204.18,204.06,7.81]
[1756486190520,73.37,204.18,204.06,12.2197]
[1756486190911,12.1973,204.18,204.07,4.4094]
[1756486191115,7.79,204.18,204.06,7.81]
[1756486191320,19.98308577,204.23,204.08,7.81]
[1756486191505,100.7466,204.22,204.12,7.81]
[1756486192010,4.4068,204.2,204.12,7.81]
[1756486192210,7.79,204.2,204.08,4.4092]
[1756486192516,7.79,204.2,204.11,7.81]
[1756486192710,86.56,204.22,204.11,7.81]
[1756486193110,76.3383,204.21,204.06,7.81]
[1756486193304,7.52647671,204.17,204.06,7.81]
[1756486193718,4.4079,204.16,204.06,12.2198]
[1756486194314,7.52647671,204.16,204.06,7.81]
[1756486194917,11.93437671,204.16,204.06,7.81]
[1756486195312,7.79,204.18,204.06,7.81]
[1756486195819,7.79,204.18,204.08,4.4092]
[1756486196019,7.79,204.18,204.06,76.408]
[1756486196219,7.79,204.18,204.06,7.81]
[1756486196416,7.79,204.18,204.09,12.219]
[1756486196619,7.52647671,204.19,204.09,7.81]
[1756486197220,7.52647671,204.19,204.11,4.4086]
[1756486197525,7.52647671,204.22,204.09,7.81]
[1756486197721,7.52647671,204.19,204.09,7.81]
[1756486197919,11.93367671,204.19,204.09,12.219]
[1756486198229,7.52647671,204.19,204.09,7.81]
[1756486198521,4.4079,204.16,204.09,7.81]
[1756486199214,11.93367671,204.19,204.09,7.81]
[1756486200112,3.50634729,204.15,204.09,7.81]
[1756486200320,5.38014965,204.21,204.12,7.81]
[1756486200511,5.38014965,204.21,204.15,68.5672]
[1756486200715,5.38014965,204.21,204.16,7.81]
[1756486200918,0.03363538,204.19,204.12,7.81]
[1756486201114,0.03363538,204.19,204.14,68.5708]
[1756486201415,0.03363538,204.19,204.15,68.5677]
[1756486201622,0.03363538,204.19,204.18,7.81]
[1756486202022,7.81241017,204.23,204.19,68.5532]
[1756486202325,10.27070177,204.29,204.22,7.81]
[1756486202817,10.27070177,204.29,204.25,7.81]
[1756486203017,10.27070177,204.29,204.24,7.81]
[1756486203216,10.27070177,204.29,204.27,4.4051]
[1756486203418,10.27070177,204.29,204.26,7.81]
[1756486203918,10.27070177,204.29,204.25,0.03736884]
[1756486204121,10.27070177,204.29,204.26,7.81]
[1756486204322,10.27070177,204.29,204.25,69.05066884]
[1756486204516,10.27070177,204.29,204.27,12.2153]
[1756486204722,10.27070177,204.29,204.28,7.81]
[1756486205423,7.79,204.44,204.32,7.81]
[1756486205621,7.79,204.44,204.34,7.81]
[1756486206221,7.79,204.44,204.37,0.03293925]
[1756486206826,15.31647671,204.44,204.37,0.03293925]
[1756486207020,211.04747671,204.44,204.37,0.03293925]
[1756486207225,4.4023,204.41,204.37,0.03293925]
[1756486207425,7.2,204.4,204.37,0.03293925]
[1756486207627,76.00797671,204.41,204.37,0.03293925]
[1756486207826,7.2,204.38,204.37,0.03293925]
[1756486209525,7.68,204.38,204.37,0.03293925]
[1756486209726,7.68,204.38,204.18,554.06647671]
[1756486209727,7.2,204.33,204.18,554.06647671]
[1756486210021,134.36,204.33,204.18,15.06647671]
[1756486210321,7.2,204.3,204.18,7.54]
[1756486210523,7.2,204.27,204.12,15.06647671]
[1756486210730,7.2,204.27,204.16,7.54]
[1756486210928,7.2,204.32,204.2,7.52647671]
[1756486211328,7.2,204.32,204.19,62.0]
[1756486212126,7.2,204.32,204.21,4.4066]
[1756486212321,7.2,204.32,204.19,130.5542]
[1756486212525,7.2,204.32,204.19,68.5542]
[1756486212726,7.2,204.32,204.2,4.4066]
[1756486212928,4.4044,204.31,204.2,4.4066]
[1756486213123,7.2,204.32,204.18,7.54]
[1756486213329,7.2,204.31,204.18,7.54]
[1756486214530,4.4047,204.3,204.2,4.4068]
[1756486214724,75.7253,204.28,204.13,7.54]
[1756486214921,68.535,204.25,204.13,7.54]
[1756486215125,7.2,204.24,204.13,7.54]
[1756486215328,11.6062,204.24,204.13,7.54]
[1756486215632,7.2,204.24,204.13,7.54]
[1756486216232,103.6,204.28,204.13,7.54]
[1756486216532,4.4062,204.23,204.13,11.9483]
[1756486216834,7.2,204.33,204.18,7.54]
[1756486217231,7.2,204.3,204.18,7.54]
[1756486217629,4.4056,204.26,204.18,7.54]
[1756486218034,11.6056,204.26,204.16,91.04]
[1756486218433,11.6056,204.26,204.13,7.54]
[1756486218626,4.4059,204.25,204.13,7.54]
[1756486218831,7.2,204.26,204.14,4.0275827]
[1756486219032,135.46,204.26,204.14,4.0275827]
[1756486219530,7.2,204.24,204.14,4.0275827]
[1756486219734,4.4066,204.22,204.14,4.0275827]
[1756486220133,4.4071,204.19,204.14,4.0275827]
[1756486220333,7.2,204.18,204.14,4.0275827]
[1756486220537,68.5424,204.23,204.14,4.0275827]
[1756486220538,7.2,204.24,204.14,4.0275827]
[1756486220736,128.18,204.23,204.14,4.0275827]
[1756486221438,9.66454548,204.22,204.14,4.0275827]
[1756486221641,2.46458566,204.21,204.14,4.0275827]
[1756486221845,7.2,204.22,204.14,4.0275827]
[1756486222139,7.2,204.16,204.14,4.0275827]
[1756486224637,12.21394177,204.29,204.14,4.0275827]
[1756486224840,7.2,204.24,204.14,4.0275827]
[1756486225030,2.46449814,204.23,204.14,4.0275827]
[1756486225233,7.2,204.24,204.14,4.0275827]
[1756486225436,2.46447966,204.23,204.14,4.0275827]
[1756486225639,7.2,204.24,204.14,4.0275827]
[1756486226139,7.2,204.24,204.15,7.54]
[1756486226644,7.2,204.24,204.08,7.54]
[1756486226940,68.5412,204.23,204.08,7.54]
[1756486227129,68.5579,204.18,204.08,7.54]
[1756486227333,196.8179,204.18,204.08,7.54]
[1756486227837,128.26,204.18,204.08,7.54]
[1756486228436,68.5615,204.17,204.05,4.0275827]
[1756486228641,7.2,204.16,204.05,4.0275827]
[1756486229341,95.02,204.19,204.06,7.54]
[1756486229537,132.5871,204.19,204.06,76.1374]
[1756486229736,128.18,204.19,204.08,4.4094]
[1756486229935,128.18,204.19,204.06,7.54]
[1756486230132,4.4079,204.16,204.06,7.54]
[1756486230342,4.4079,204.16,204.07,4.4094]
[1756486230641,128.18,204.19,204.06,7.54]
[1756486230842,128.12,204.19,204.06,76.1374]
[1756486231039,7.2,204.2,204.07,7.54]
[1756486231741,4.4072,204.19,204.07,7.54]
[1756486232242,75.7529,204.2,204.07,7.54]
[1756486232441,2.46405706,204.19,204.07,7.54]
[1756486232638,87.96684177,204.2,204.07,7.54]
[1756486232838,4.408,204.15,204.07,7.54]
[1756486233539,4.4084,204.13,204.07,7.54]
[1756486233742,4.4084,204.13,204.05,4.0275827]
[1756486234236,11.6088,204.11,204.05,4.0275827]
[1756486235844,7.2,204.11,204.05,4.0275827]
[1756486236644,4.4091,204.1,204.05,4.0275827]
[1756486236942,7.2,204.11,204.05,4.0275827]
[1756486237751,7.88,204.08,204.05,4.0275827]
[1756486238242,4.4094,204.09,204.05,4.0275827]
[1756486238443,7.88,204.07,204.05,4.0275827]
[1756486238639,7.52729719,204.09,204.05,4.0275827]
[1756486238843,76.11549719,204.09,204.05,4.0275827]
[1756486239042,7.88,204.08,204.05,4.0275827]
[1756486239234,7.88,204.13,204.05,4.0275827]
[1756486239438,126.32,204.13,204.05,4.0275827]
[1756486239941,11.93609719,204.11,204.05,4.0275827]
[1756486240452,7.52729719,204.12,204.05,4.0275827]
[1756486240642,7.88,204.18,204.06,7.21]
[1756486240943,7.52729719,204.17,204.06,7.21]
[1756486241746,4.4081,204.15,204.08,4.4093]
[1756486241942,7.88,204.18,204.07,68.5946]
[1756486242147,7.88,204.18,204.09,7.21]
[1756486242541,7.88,204.18,204.11,4.4086]
[1756486243142,329.12,204.2,204.11,4.4086]
[1756486243341,127.88,204.19,204.11,4.4086]
[1756486243548,333.527,204.2,204.12,4.4084]
[1756486243742,461.407,204.2,204.12,4.4084]
[1756486244047,4.407,204.2,204.13,7.21]
[1756486244243,15.40729719,204.28,204.13,7.21]
[1756486244447,127.92,204.27,204.13,7.21]
[1756486244642,7.88,204.28,204.19,7.21]
[1756486244843,5.44574365,204.28,204.2,4.46128897]
[1756486245044,5.44574365,204.28,204.21,4.46128897]
[1756486245246,5.44574365,204.28,204.22,4.46128897]
[1756486245444,13.32574365,204.28,204.23,4.46128897]
[1756486245749,13.32574365,204.28,204.24,4.46128897]
[1756486246049,13.32574365,204.28,204.25,4.46128897]
[1756486246249,13.32574365,204.28,204.19,7.21]
[1756486246447,5.44574365,204.28,204.2,4.45917158]
[1756486246652,5.44574365,204.28,204.22,7.21]
[1756486246842,5.44574365,204.28,204.24,7.21]
[1756486247041,5.44574365,204.28,204.25,4.45917158]
[1756486247247,5.44574365,204.28,204.27,7.21]
[1756486247450,5.44574365,204.28,204.27,11.66917158]
[1756486247852,5.44574365,204.28,204.27,4.45917158]
[1756486248752,5.44574365,204.28,204.27,11.66917158]
[1756486249551,2.46974365,204.28,204.27,12.14917158]
[1756486249750,8.17351443,204.31,204.28,4.405]
[1756486249946,8.17351443,204.31,204.29,7.21]
[1756486250152,8.17351443,204.31,204.3,11.65971459]
[1756486250546,10.85333228,204.36,204.3,80.65671459]
[1756486250749,10.85333228,204.36,204.31,4.44971459]
[1756486250949,10.85333228,204.36,204.32,4.44971459]
[1756486251148,10.85333228,204.36,204.34,7.21]
[1756486251352,10.85333228,204.36,204.35,4.44971459]
[1756486251553,7.88,204.47,204.35,12.13971459]
[1756486251747,7.88,204.47,204.36,4.44971459]
[1756486252053,0.85136573,204.51,204.39,68.4874]
[1756486252354,7.88,204.51,204.4,4.44971459]
[1756486252653,4.4004,204.5,204.41,4.44971459]
[1756486252860,4.4004,204.5,204.42,4.44971459]
[1756486253151,0.03263497,204.48,204.43,4.44971459]
[1756486253358,7.91263497,204.48,204.44,4.44971459]
[1756486253651,0.03263497,204.48,204.45,4.44971459]
[1756486253857,0.03263497,204.48,204.46,4.44971459]
[1756486254150,0.03263497,204.48,204.47,4.44971459]
[1756486256253,0.03263497,204.48,204.47,10.18971459]
[1756486256449,7.91263497,204.48,204.47,4.44971459]
[1756486256849,0.03263497,204.48,204.47,4.44971459]
[1756486257052,0.03263497,204.48,204.47,4.42333571]
[1756486258960,7.91263497,204.48,204.47,4.42333571]
[1756486260256,0.03263497,204.48,204.47,4.42333571]
[1756486260458,0.03263497,204.48,204.44,3.79338899]
[1756486260658,0.03263497,204.48,204.45,10.14712814]
[1756486260854,7.88,204.47,204.44,3.79338899]
[1756486261054,135.65993216,204.48,204.44,3.79338899]
[1756486261259,7.88,204.45,204.44,3.79338899]
[1756486261858,15.88729719,204.45,204.44,8.899e-05]
[1756486262058,4.4021,204.42,204.35,4.0275827]
[1756486263457,68.4813,204.41,204.35,4.0275827]
[1756486263659,128.16,204.41,204.35,4.0275827]
[1756486263954,4.4028,204.39,204.35,4.0275827]
[1756486264156,7.88,204.46,204.35,4.0275827]
[1756486264456,68.4677,204.45,204.35,4.0275827]
[1756486264755,4.4019,204.43,204.35,4.0275827]
[1756486264963,136.02,204.46,204.35,4.0275827]
[1756486265162,7.88,204.46,204.35,4.0275827]
[1756486265656,7.88,204.46,204.36,4.4034]
[1756486265862,7.88,204.46,204.35,4.0275827]
[1756486266559,7.5,204.43,204.35,4.0275827]
[1756486267763,19.42829719,204.48,204.35,8.4309827]
[1756486268059,66.56,204.47,204.35,4.0275827]
[1756486268263,66.56,204.47,204.37,4.4031]
[1756486268456,66.56,204.47,204.36,7.87]
[1756486269063,7.5,204.46,204.35,4.0275827]
[1756486269457,4.4017,204.44,204.35,4.0275827]
[1756486270160,7.5,204.46,204.36,7.87]
[1756486270464,75.9645,204.46,204.31,69.87]
[1756486270771,15.02729719,204.42,204.31,7.87]
[1756486272162,4.4025,204.41,204.31,7.87]
[1756486272663,7.52729719,204.41,204.27,12.2751]
[1756486272854,7.5,204.4,204.27,7.87]
[1756486273260,7.5,204.4,204.28,68.5244]
[1756486273563,7.5,204.4,204.29,7.87]
[1756486273765,7.5,204.4,204.29,12.2748]
[1756486273959,7.5,204.4,204.29,7.87]
[1756486274468,7.5,204.4,204.33,4.4038]
[1756486274662,68.509,204.33,204.24,4.0275827]
[1756486274856,68.5047,204.34,204.24,4.0275827]
[1756486274857,7.5,204.29,204.24,4.0275827]
[1756486275062,7.5,204.24,204.12,76.4476]
[1756486275265,7.5,204.23,204.12,7.87]
[1756486275465,128.76,204.24,204.12,7.87]
[1756486275466,15.02729719,204.21,204.12,7.87]
[1756486275766,7.5,204.21,204.16,4.4075]
[1756486275966,7.52729719,204.24,204.12,76.4475]
[1756486276169,7.5,204.23,204.12,76.4475]
[1756486276368,7.52729719,204.24,204.12,76.4475]
[1756486276757,7.5,204.22,204.12,76.4475]
[1756486276962,7.5,204.22,204.17,12.45450498]
[1756486278363,68.5047,204.34,204.19,4.407]
[1756486278667,68.5047,204.34,204.17,8.04720498]
[1756486278668,15.02729719,204.27,204.17,8.04720498]
[1756486278870,7.5,204.22,204.17,8.04720498]
[1756486279271,7.52729719,204.23,204.17,8.04720498]
[1756486279465,15.02729719,204.27,204.17,8.04720498]
[1756486279663,78.56,204.26,204.17,8.04720498]
[1756486280669,78.56,204.26,204.14,76.4409]
[1756486280971,128.68,204.26,204.14,76.4409]
[1756486281170,4.4057,204.25,204.14,76.4409]
[1756486281475,15.02729719,204.24,204.11,3.73880928]
[1756486281777,50.34,204.23,204.11,3.73880928]
[1756486282670,7.52729719,204.21,204.11,3.73880928]
[1756486283474,11.93399719,204.21,204.11,3.73880928]
[1756486283774,7.5,204.2,204.11,3.73880928]
[1756486284173,136.42729719,204.22,204.11,3.73880928]
[1756486284476,128.8,204.22,204.11,3.73880928]
[1756486284678,7.52729719,204.21,204.11,3.73880928]
[1756486284975,128.8,204.22,204.11,3.73880928]
[1756486285173,7.5,204.25,204.11,3.73880928]
[1756486285376,7.52729719,204.28,204.12,7.87]
[1756486285676,7.52729719,204.28,204.13,7.87]
[1756486285873,7.52729719,204.25,204.13,7.87]
[1756486286776,7.5,204.24,204.13,7.87]
[1756486286976,4.4062,204.23,204.13,7.87]
[1756486287476,7.5,204.35,204.19,7.87]
[1756486287776,7.52729719,204.33,204.19,7.87]
[1756486287977,4.4045,204.31,204.19,7.87]
[1756486288277,7.52729719,204.34,204.19,7.87]
[1756486289076,7.52729719,204.34,204.21,4.4066]
[1756486289267,7.52729719,204.34,204.22,7.87]
[1756486289777,4.404,204.33,204.23,4.4061]
[1756486291978,7.5,204.32,204.18,7.87]
[1756486292179,7.52729719,204.3,204.18,7.87]
[1756486292380,7.5,204.32,204.18,7.87]
[1756486292780,76.0112,204.32,204.18,7.87]
[1756486292980,7.52729719,204.3,204.18,7.87]
[1756486293881,4.4049,204.29,204.18,12.2772]
[1756486294478,4.4053,204.27,204.2,5.37011027]
[1756486294673,7.52729719,204.27,204.24,3.73880928]
[1756486294992,136.20729719,204.27,204.24,3.73880928]
[1756486295183,11.9057,204.25,204.24,3.73880928]
[1756486295483,136.18,204.32,204.24,3.73880928]
[1756486295880,4.4046,204.31,204.24,3.73880928]
[1756486296277,7.5,204.29,204.24,3.73880928]
[1756486296482,7.52729719,204.3,204.24,3.73880928]
[1756486297280,136.18,204.31,204.24,3.73880928]
[1756486297582,7.5,204.31,204.24,3.73880928]
[1756486298282,15.02729719,204.31,204.24,3.73880928]
[1756486298482,7.79,204.27,204.24,3.73880928]
[1756486298876,7.52729719,204.28,204.24,3.73880928]
[1756486299078,7.79,204.27,204.24,3.73880928]
[1756486299282,7.52729719,204.28,204.24,3.73880928]
[1756486299485,7.79,204.27,204.24,3.73880928]
[1756486299682,7.79,204.26,204.24,3.73880928]
[1756486300079,7.79,204.25,204.24,3.73880928]
[1756486300286,15.31729719,204.25,204.24,3.73880928]
[1756486301387,143.91729719,204.25,204.24,3.73880928]
[1756486301682,15.31729719,204.25,204.24,3.73880928]
[1756486301879,128.58,204.25,204.24,3.73880928]
[1756486302178,7.52729719,204.29,204.24,3.73880928]
[1756486302386,7.79,204.25,204.24,3.73880928]
[1756486302884,7.79,204.25,204.2,5.37011027]
[1756486303078,83.84909719,204.26,204.2,5.37011027]
[1756486303278,7.79,204.24,204.2,5.37011027]
[1756486303479,12.1961,204.24,204.2,5.37011027]
[1756486303675,4.4061,204.24,204.2,5.37011027]
[1756486303974,76.05869719,204.26,204.2,5.37011027]
[1756486304178,68.5523,204.2,204.16,8.04720498]
[1756486304384,7.79,204.18,204.16,8.04720498]
[1756486304884,128.44,204.17,204.16,8.04720498]
[1756486305078,136.23,204.17,204.16,8.04720498]
[1756486305583,136.23,204.17,204.1,10.75850913]
[1756486305880,7.79,204.13,204.1,10.75850913]
[1756486306084,128.42,204.12,204.1,10.75850913]
[1756486306279,19.72539719,204.15,204.1,10.75850913]
[1756486306479,128.42,204.13,204.1,10.75850913]
[1756486306884,15.31729719,204.15,204.1,10.75850913]
[1756486307079,128.42,204.13,204.1,10.75850913]
[1756486307483,136.21,204.13,204.1,10.75850913]
[1756486307876,4.4087,204.12,204.1,10.75850913]
[1756486308084,12.1987,204.12,204.1,10.75850913]
[1756486308287,128.42,204.13,204.08,8.04878572]
[1756486308487,7.79,204.12,204.08,8.04878572]
[1756486308684,128.42,204.13,204.08,8.04878572]
[1756486308988,128.3,204.12,204.08,15.63878572]
[1756486309789,128.28,204.13,204.08,15.63878572]
[1756486309987,128.28,204.16,204.09,7.59]
[1756486310682,132.6879,204.16,204.09,7.59]
[1756486311588,128.28,204.16,204.09,11.9992]
[1756486311980,128.28,204.16,204.09,7.59]
[1756486312485,7.52729719,204.21,204.12,4.4085]
[1756486312687,0.03230441,204.15,204.1,7.59]
[1756486313387,0.03230441,204.15,204.14,7.59]
[1756486314894,0.03230441,204.15,204.14,8.07]
[1756486315193,329.02,204.24,204.17,4.4075]
[1756486315489,457.04,204.24,204.17,4.4075]
[1756486315685,329.02,204.24,204.16,7.59]
[1756486315887,7.79,204.29,204.16,7.59]
[1756486316084,259.33732385,204.27,204.2,4.4067]
[1756486316481,131.35732385,204.27,204.21,0.03751396]
[1756486316793,127.98,204.31,204.21,7.62751396]
[1756486317493,127.98,204.31,204.24,4.4058]
[1756486318189,127.98,204.31,204.25,0.03718603]
[1756486318389,7.79,204.29,204.25,0.03718603]
[1756486318586,127.98,204.31,204.25,0.03718603]
[1756486318791,7.79,204.29,204.25,0.03718603]
[1756486318993,135.77,204.31,204.25,0.03718603]
[1756486319193,2.46840308,204.3,204.25,0.03718603]
[1756486319492,7.79,204.28,204.25,0.03718603]
[1756486320194,15.31729719,204.34,204.25,0.03718603]
[1756486320405,130.31036857,204.33,204.25,0.03718603]
[1756486320695,2.47036857,204.32,204.26,7.59]
[1756486320893,7.79,204.39,204.3,4.4044]
[1756486321089,2.47012593,204.38,204.26,7.59]
[1756486321391,2.47012593,204.37,204.26,7.59]
[1756486321591,7.79,204.35,204.3,0.0343434]
[1756486321788,15.31729719,204.35,204.3,0.0343434]
[1756486321991,7.79,204.31,204.3,0.0343434]
[1756486322192,138.29968589,204.31,204.3,0.0343434]
[1756486325397,138.11968589,204.31,204.3,0.0343434]
[1756486326898,10.25968589,204.31,204.3,0.0343434]
[1756486327292,110.06,204.31,204.3,0.0343434]
[1756486328192,127.72,204.34,204.3,7.6443434]
[1756486328397,127.72,204.34,204.3,0.0343434]
[1756486328590,127.72,204.34,204.31,7.61]
[1756486328790,127.72,204.34,204.3,0.0343434]
[1756486329993,7.93,204.33,204.3,0.0343434]
[1756486330500,127.72,204.34,204.3,0.0343434]
[1756486330793,7.52729719,204.41,204.3,0.0343434]
[1756486330998,98.36377763,204.4,204.3,0.0343434]
[1756486331195,2.46377763,204.39,204.3,0.0343434]
[1756486331391,7.93,204.42,204.31,76.1239]
[1756486331597,100.61,204.42,204.31,7.61]
[1756486331897,100.61,204.42,204.32,0.03361515]
[1756486332498,105.0122,204.42,204.32,4.43761515]
[1756486332694,100.61,204.42,204.32,0.03361515]
[1756486333189,4.4025,204.41,204.32,4.43771515]
[1756486333396,100.61,204.42,204.32,0.03361515]
[1756486333792,9.98792726,204.41,204.32,0.03361515]
[1756486333991,10.39071857,204.4,204.32,0.03361515]
[1756486334289,2.46071857,204.39,204.32,0.03361515]
[1756486334804,7.93,204.4,204.32,0.03361515]
[1756486334995,12.3327,204.4,204.32,0.03361515]
[1756486335490,7.93,204.4,204.32,0.03361515]
[1756486335792,7.93,204.4,204.33,4.4039]
[1756486335995,97.0822,204.42,204.32,68.54431515]
[1756486335996,127.36,204.42,204.32,68.54431515]
[1756486336299,127.36,204.42,204.34,4.4037]
[1756486336503,7.93,204.41,204.32,0.03361515]
[1756486336904,7.93,204.41,204.37,4.403]
[1756486337298,127.44,204.45,204.34,76.1139]
[1756486337497,7.93,204.48,204.36,68.4951]
[1756486337697,127.44,204.47,204.37,7.64476855]
[1756486337899,7.93,204.5,204.47,4.4008]
[1756486338097,5.43797367,204.51,204.44,7.52729719]
[1756486338300,5.43797367,204.51,204.43,7.61]
[1756486338500,5.43797367,204.51,204.44,4.4016]
[1756486338704,5.43797367,204.51,204.45,0.03102633]
[1756486340103,5.43797367,204.51,204.46,4.4012]
[1756486340297,13.36797367,204.51,204.46,4.4012]
[1756486340703,7.93,204.51,204.46,4.4012]
[1756486340899,40.79,204.55,204.46,12.0112]
[1756486341203,40.79,204.55,204.47,4.4008]
[1756486341600,7.93,204.55,204.48,4.4006]
[1756486342204,7.93,204.55,204.49,0.03537063]
[1756486342600,135.51,204.57,204.5,4.4003]
[1756486343205,139.9089,204.57,204.49,0.03537063]
[1756486343503,135.51,204.57,204.49,0.03537063]
[1756486343701,7.93,204.54,204.49,0.03537063]
[1756486343905,7.93,204.51,204.38,68.4902]
[1756486344112,4.4006,204.49,204.38,4.4028]
[1756486344404,7.93,204.48,204.38,4.4028]
[1756486345007,12.331,204.48,204.38,4.4028]
[1756486345601,127.66,204.47,204.39,4.4025]
[1756486346000,7.93,204.48,204.39,4.4025]
[1756486346204,127.62,204.46,204.39,4.4025]
[1756486346407,7.93,204.45,204.37,4.4031]
[1756486349204,12.3314,204.45,204.37,4.4031]
[1756486349406,7.93,204.42,204.32,12.014]
[1756486349708,4.4025,204.4,204.32,12.014]
[1756486350006,127.36,204.39,204.32,12.014]
[1756486350504,135.29,204.39,204.32,4.404]
[1756486350699,135.29,204.39,204.29,4.04813319]
[1756486350700,127.36,204.39,204.34,4.4037]
[1756486350907,127.32,204.42,204.35,7.61]
[1756486351105,7.52729719,204.46,204.37,68.4937]
[1756486351301,0.03392996,204.41,204.4,12.0125]
[1756486351504,2.996e-05,204.41,204.4,12.0125]
[1756486351698,328.74,204.51,204.44,7.61]
[1756486351901,7.93,204.5,204.39,68.51917745]
[1756486352099,7.93,204.5,204.38,7.61]
[1756486352510,7.93,204.5,204.42,4.4019]
[1756486352910,7.93,204.5,204.44,0.03662482]
[1756486353409,7.93,204.5,204.44,4.43822482]
[1756486353611,7.93,204.5,204.44,0.03662482]
[1756486353807,7.52729719,204.48,204.44,0.03662482]
[1756486354007,7.93,204.46,204.44,0.03662482]
[1756486354311,135.49,204.46,204.44,0.03662482]
[1756486354712,127.56,204.46,204.44,0.03662482]
[1756486354912,127.64,204.47,204.44,0.03662482]
[1756486355213,127.66,204.5,204.44,0.03662482]
[1756486357518,341.0702,204.51,204.44,0.03662482]
[1756486357711,127.56,204.5,204.44,0.03662482]
[1756486358415,341.92147202,204.51,204.44,0.03662482]
[1756486358615,127.46,204.5,204.44,0.03662482]
[1756486358812,337.52127202,204.51,204.44,0.03662482]
[1756486359011,127.46,204.5,204.44,0.03662482]
[1756486359412,7.72,204.48,204.44,0.03662482]
[1756486359707,7.52729719,204.48,204.44,0.03662482]
[1756486359913,7.72,204.46,204.44,0.03662482]
[1756486360109,2.45582003,204.47,204.44,0.03662482]
[1756486360110,135.24,204.45,204.44,0.03662482]
[1756486360714,7.72,204.45,204.44,0.03662482]
[1756486361010,135.24,204.45,204.44,0.03662482]
[1756486362013,127.52,204.45,204.44,0.03662482]
[1756486362516,135.24,204.45,204.44,0.03662482]
[1756486363015,137.69863061,204.45,204.44,0.03662482]
[1756486363515,10.17863061,204.45,204.44,0.03662482]
[1756486363908,137.65863061,204.45,204.44,0.03662482]
[1756486364108,145.1659278,204.45,204.44,0.03662482]
[1756486364307,68.4711,204.44,204.38,4.04813319]
[1756486364511,7.72,204.39,204.38,4.04813319]
[1756486364710,137.59953433,204.39,204.38,4.04813319]
[1756486365112,137.6010063,204.39,204.38,4.04813319]
[1756486366117,0.0360518,204.41,204.38,4.04813319]
[1756486366319,127.38,204.39,204.38,4.04813319]
[1756486366721,0.0360518,204.41,204.38,4.04813319]
[1756486366915,137.50159892,204.4,204.38,4.04813319]
[1756486367219,135.04,204.4,204.38,4.04813319]
[1756486367421,127.34,204.39,204.38,4.04813319]
[1756486369216,127.3,204.39,204.38,4.04813319]
[1756486370918,127.2560518,204.41,204.38,4.04813319]
[1756486371219,127.1360518,204.41,204.38,4.04813319]